Workbook

Sheet NSU
B1: Oona Liimatainen | E1: 4.6.1997 Pori
B2: SUPERPESIS | E2: Runkosarja | I2: Kärkilyönnit (KL), pesänvälit | Q2: Runkosarja | U2: Ylempi loppusarja | Z2: Alempi loppusarja | AG2: Arvo-ottelut ja mitalit
B3: Vuosi | C3: Sija | D3: Seura | E3: OTT | F3: KUN | G3: LÖI | H3: TOI | I3: KL | J3: 0 > 1 | K3: 1 > 2 | L3: 2 > 3 | M3: 3 > k | N3: KL-% | P3: LÖI | Q3: TOI | R3: L+T | S3: KL | U3: OTT | V3: KUN | W3: LÖI | X3: TOI | Y3: KL | Z3: OTT | AA3: KUN | AB3: LÖI | AC3: TOI | AD3: KL | AE3: IL | AF3: LL | AG3: Halli | AH3: K | AI3: H | AJ3: P
B4: 2013 | D4: Pesäkarhut 2 | F4: suomensarja
B5: 2014 | D5: Pesäkarhut 2 | F5: suomensarja
B6: 2015 | D6: Pesäkarhut 2 | F6: ykköspesis
B7: 2016 | D7: Pesäkarhut 2 | F7: ykköspesis
B8: 2016 | C8: 3. | D8: Pesäkarhut | E8: 1 | F8: 0 | G8: 0 | H8: 0 | I8: 1 | J8: 1 | K8: 0 | L8: 0 | M8: 0 | N8: 50.0 % | O8: 2 | AJ8: 1
B9: 2017 | D9: Pesäkarhut 2 | F9: ykköspesis
B10: 2017 | C10: 2. | D10: Pesäkarhut | E10: 19 | F10: 0 | G10: 1 | H10: 7 | I10: 35 | J10: 18 | K10: 12 | L10: 4 | M10: 1 | N10: 38.5 % | O10: 91 | U10: 12 | V10: 0 | W10: 0 | X10: 2 | Y10: 15 | AG10: 1 | AI10: 1
B11: 2018 | C11: 11. | D11: LaVe | E11: 17 | F11: 0 | G11: 1 | H11: 12 | I11: 46 | J11: 16 | K11: 24 | L11: 5 | M11: 1 | N11: 37.7 % | O11: =PRODUCT(I11/N11) -> 122.0159151
B12: 2018 | C12: 3. | D12: Pesäkarhut | E12: 6 | F12: 0 | G12: 0 | H12: 3 | I12: 12 | J12: 8 | K12: 4 | L12: 0 | M12: 0 | N12: 31.6 % | O12: =PRODUCT(I12/N12) -> 37.97468354 | U12: 1 | V12: 0 | W12: 0 | X12: 1 | Y12: 1 | AJ12: 1
B13: 2019 | D13: Pesäkarhut 2 | F13: ykköspesis
B14: 2019 | C14: 2. | D14: Pesäkarhut | E14: 10 | F14: 0 | G14: 0 | H14: 4 | I14: 11 | J14: 6 | K14: 3 | L14: 2 | M14: 0 | N14: 26.2 % | O14: 42 | U14: 1 | V14: 0 | W14: 0 | X14: 0 | Y14: 1 | AG14: 1 | AI14: 1
B15: 2020 | C15: 4. | D15: Virkiä | E15: 19 | F15: 0 | G15: 2 | H15: 15 | I15: 38 | J15: 11 | K15: 15 | L15: 10 | M15: 2 | N15: 54.3 % | O15: 70 | U15: 7 | V15: 0 | W15: 0 | X15: 5 | Y15: 13
B16: 2021 | D16: KPK | F16: ykköspesis
B17: 2022 | C17: 9. | D17: JoMa | E17: 22 | F17: 1 | G17: 3 | H17: 14 | I17: 71 | J17: 18 | K17: 39 | L17: 10 | M17: 4 | N17: 54.6 % | O17: 130
B18: 2023 | C18: 6. | D18: JoMa | E18: 22 | F18: 0 | G18: 2 | H18: 14 | I18: 58 | J18: 9 | K18: 24 | L18: 23 | M18: 2 | N18: 52.3 % | O18: 111 | U18: 5 | V18: 0 | W18: 0 | X18: 0 | Y18: 9
B19: 2024 | C19: 6. | D19: JoMa | E19: 14 | F19: 0 | G19: 1 | H19: 6 | I19: 33 | J19: 6 | K19: 21 | L19: 5 | M19: 1 | N19: 55.0 % | O19: 60 | U19: 4 | V19: 0 | W19: 0 | X19: 1 | Y19: 10
B20: Yhteensä | E20: =SUM(E8:E19) -> 130 | F20: =SUM(F8:F19) -> 1 | G20: 10 | H20: 75 | I20: 305 | J20: 93 | K20: 142 | L20: 59 | M20: 11 | N20: =PRODUCT(I20/O20) -> 45.8 % | O20: =SUM(O8:O19) -> 665.9905987 | U20: =SUM(U8:U19) -> 30 | V20: =SUM(V8:V19) -> 0 | W20: =SUM(W8:W19) -> 0 | X20: =SUM(X8:X19) -> 9 | Y20: =SUM(Y8:Y19) -> 49 | Z20: =SUM(Z8:Z19) -> 0 | AA20: =SUM(AA8:AA19) -> 0 | AB20: =SUM(AB8:AB19) -> 0 | AC20: =SUM(AC8:AC19) -> 0 | AD20: =SUM(AD8:AD19) -> 0 | AE20: =SUM(AE8:AE19) -> 0 | AF20: =SUM(AF8:AF19) -> 0 | AG20: =SUM(AG8:AG19) -> 2 | AH20: =SUM(AH8:AH19) -> 0 | AI20: =SUM(AI8:AI19) -> 2 | AJ20: =SUM(AJ8:AJ19) -> 2
B21: Pesispörssi | D21: =SUM(F20:H20)+((I20-F20-G20)/3)+(E20/3)+(AE20*25)+(AF20*25)+(AG20*10)+(AH20*25)+(AI20*20)+(AJ20*15)-15-15 -> 287.3
B23: URA SUPERISSA | E23: OTT | F23: KUN | G23: LÖI | H23: TOI | I23: KL | K23: ka/L | L23: ka/T | M23: ka/KL | N23: KL-% | P23: ENSIMMÄISET
B24: Runkosarja | E24: =PRODUCT(E20) -> 130 | F24: =PRODUCT(F20) -> 1 | G24: =PRODUCT(G20) -> 10 | H24: =PRODUCT(H20) -> 75 | I24: =PRODUCT(I20) -> 305 | K24: =PRODUCT((F24+G24)/E24) -> 0.08 | L24: =PRODUCT(H24/E24) -> 0.58 | M24: =PRODUCT(I24/E24) -> 2.35 | N24: =PRODUCT(N20) -> 45.8 % | O24: =PRODUCT(O20) -> 665.9905987 | P24: Ottelu | R24: 24.05. 2016 Pesäkarhut - Pesä Ysit 2-0 (5-4, 5-0) | AC24: 1. ottelu | AF24: 18 v 11 kk 20 pv
B25: Ylempi loppusarja | E25: =SUM(U20) -> 30 | F25: =SUM(V20) -> 0 | G25: =SUM(W20) -> 0 | H25: =SUM(X20) -> 9 | I25: =SUM(Y20) -> 49 | K25: =PRODUCT((F25+G25)/E25) -> 0.00 | L25: =PRODUCT(H25/E25) -> 0.30 | M25: =PRODUCT(I25/E25) -> 1.63 | N25: =PRODUCT(I25/O25) -> 38.9 % | O25: 126 | P25: Lyöty | R25: 06.08. 2017 KeKi - Pesäkarhut 1-2 (4-2, 1-2, 0-0, 5-6) | AC25: 17. ottelu | AF25: 20 v 2 kk 2 pv
B26: Alempi loppusarja | P26: Tuotu | R26: 22.04. 2017 Manse PP - Pesäkarhut 2-1 (2-1, 1-2, 2-1) | AC26: 2. ottelu | AF26: 19 v 10 kk 18 pv
B27: KAIKKI | E27: =SUM(E24:E26) -> 160 | F27: =SUM(F24:F26) -> 1 | G27: =SUM(G24:G26) -> 10 | H27: =SUM(H24:H26) -> 84 | I27: =SUM(I24:I26) -> 354 | K27: =PRODUCT((F27+G27)/E27) -> 0.07 | L27: =PRODUCT(H27/E27) -> 0.53 | M27: =PRODUCT(I27/E27) -> 2.21 | N27: =PRODUCT(I27/O27) -> 44.7 % | O27: =SUM(O24:O26) -> 791.9905987 | P27: Kunnari | R27: 02.07. 2022 JoMa - Roibu 2-0 (8-3, 2-0) | AC27: 104. ottelu | AF27: 25 v 0 kk 28 pv
B29: Seurat | D29: Pesäkarhut (1985), kasvattajaseura
D30: LaVe = Lappajärven Veikot (1911)
D31: Virkiä = Lapuan Virkiä (1907)
D32: KPK = Kajaanin Pallokerho (1933)
D33: JoMa = Joensuun Maila (1957)
